fUSD/lending_fUSD_20251112
["ID","MTS","AMOUNT","RATE_DAILY","PERIOD"]
[393717596,1762945831572,-648.768875,0.0003452,20]
[393717597,1762945831581,-160.855024,0.0003452,20]
[393717598,1762945831590,-171.884063,0.0003452,20]
[393717599,1762945831600,-171.884063,0.0003452,20]
[393717600,1762945831609,-400.0,0.00035,2]
[393717601,1762945831621,-152.0,0.00035022,3]
[393717602,1762945831630,-284.995,0.0003526,41]
[393717603,1762945831640,-163.727435,0.0003526,20]
[393717604,1762945831649,-188.108584,0.0003526,20]
[393717605,1762945831658,-188.108584,0.0003526,20]
[393717606,1762945831667,-188.108584,0.0003526,20]
[393717607,1762945831679,-188.108584,0.0003526,20]
[393717608,1762945831688,-188.108584,0.0003526,20]
[393717609,1762945831698,-648.768875,0.0003526,20]
[393717610,1762945831707,-648.768875,0.0003526,20]
[393717611,1762945831716,-648.768875,0.0003526,20]
[393717612,1762945831726,-648.768875,0.0003526,20]
[393717613,1762945831735,-648.768875,0.0003526,20]
[393717614,1762945831744,-214.855079,0.0003526,20]
[393717616,1762945831754,-160.855024,0.0003526,20]
[393717617,1762945831764,-160.855024,0.0003526,20]
[393717619,1762945831773,-171.884063,0.0003526,20]
[393717621,1762945831782,-171.884063,0.0003526,20]
[393717623,1762945831791,-171.884063,0.0003526,20]
[393717625,1762945831800,-163.727435,0.0003526,20]
[393717626,1762945831810,-500.0,0.000353,5]
[393717627,1762945831820,-500.68799219,0.000353,5]
[393717628,1762945831830,-500.0,0.000353,5]
[393717629,1762945831840,-500.0,0.000353,5]
[393717630,1762945831849,-500.0,0.000353,5]
[393717631,1762945831858,-500.0,0.000353,5]
[393717632,1762945831867,-411.26555742,0.000353,5]
[393717633,1762945831877,-500.0,0.000353,5]
[393717634,1762945831885,-503.60483928,0.000353,5]
[393717635,1762945831895,-574.18497411,0.000353,3]
[393717636,1762945831904,-999.79708927,0.00035528,2]
[393717637,1762945831913,-627.45380744,0.00035752,5]
[393717638,1762945831922,-280.18448739,0.00035806,30]
[393717639,1762945831934,-219.81551261,0.00035806,30]
[393717640,1762945831943,-290.85270034,0.00035848,5]
[393717641,1762945831961,-212.75685361,0.00035848,5]
[393717642,1762945831971,-504.28126932,0.00035848,5]
[393717643,1762945831980,-502.84272327,0.00035848,5]
[393717644,1762945831989,-363.05434986,0.00035848,5]
[393717645,1762945831998,-403.1044147,0.00035848,5]
[393717651,1762945837417,-103.92845965,0.00035848,5]
[393717652,1762945837427,-271.96,0.00035878,120]
[393717653,1762945837438,-153.89,0.00036032,2]
[393717654,1762945837448,-478.56668374,0.00036042,2]
[393717655,1762945837458,-193.48,0.00036243,2]
[393717656,1762945837468,-500.0,0.00036566,5]
[393717657,1762945837478,-168.0,0.00036778,2]
[393717658,1762945837489,-157.63,0.00036815,2]
[393717659,1762945837499,-5256.75925035,0.00036879,30]
[393717660,1762945837509,-500.0,0.0003693,30]
[393717661,1762945837519,-1000.0,0.00037,120]
[393717662,1762945837530,-560.0,0.00037029,2]
[393717663,1762945837540,-166.66,0.0003714,2]
[393717664,1762945837550,-168.0,0.00037174,2]
[393717665,1762945837561,-716.0,0.00037177,3]
[393717666,1762945837571,-166.219,0.00037179,47]
[393717667,1762945837582,-194.12066779,0.000372,120]
[393717668,1762945837592,-152.0,0.00037238,4]
[393717669,1762945837603,-168.0,0.00037371,7]
[393717670,1762945837613,-500.0,0.00037535,7]
[393717671,1762945837623,-600.0,0.00037535,7]
[393717672,1762945837633,-700.0,0.00037535,7]
[393717673,1762945837643,-168.0,0.00037535,2]
[393717674,1762945837655,-168.0,0.00037544,2]
[393717675,1762945837666,-535.12863588,0.00037595,30]
[393717676,1762945837676,-168.0,0.0003763,120]
[393717677,1762945837687,-585.46273287,0.00037694,2]
[393717678,1762945837698,-168.0,0.00037735,2]
[393717679,1762945837710,-151.0,0.00037807,2]
[393717680,1762945837720,-151.0,0.00037807,2]
[393717681,1762945837731,-151.0,0.00037807,2]
[393717682,1762945837741,-151.0,0.00037807,2]
[393717684,1762945837752,-151.0,0.00037807,2]
[393717686,1762945837762,-151.0,0.00037807,2]
[393717688,1762945837773,-151.0,0.00037807,2]
[393717690,1762945837783,-151.0,0.00037807,2]
[393717691,1762945837794,-151.0,0.00037807,2]
[393717694,1762945837805,-151.0,0.00037807,2]
[393717695,1762945837815,-151.0,0.00037807,2]
[393717696,1762945837825,-151.0,0.00037807,2]
[393717698,1762945837837,-151.0,0.00037807,2]
[393717699,1762945837847,-151.0,0.00037807,2]
[393717702,1762945837858,-151.0,0.00037807,2]
[393717703,1762945837869,-151.0,0.00037807,2]
[393717704,1762945837880,-151.0,0.00037807,2]
[393717705,1762945837891,-151.0,0.00037807,2]
[393717706,1762945837902,-151.0,0.00037807,2]
[393717707,1762945837914,-151.0,0.00037807,2]
[393717708,1762945837924,-151.0,0.00037807,2]
[393717709,1762945837935,-151.0,0.00037807,2]
[393717710,1762945837946,-151.0,0.00037807,2]
[393717711,1762945837955,-151.0,0.00037807,2]
[393717712,1762945837966,-151.0,0.00037807,2]
[393717713,1762945837975,-151.0,0.00037807,2]
[393717714,1762945837984,-151.0,0.00037807,2]
[393717715,1762945837994,-151.0,0.00037807,2]
[393717716,1762945838004,-151.0,0.00037807,2]
[393717717,1762945838014,-151.0,0.00037807,2]
[393717718,1762945838025,-151.0,0.00037807,2]
[393717719,1762945838036,-151.0,0.00037807,2]
[393717720,1762945838047,-151.0,0.00037807,2]
[393717721,1762945838057,-151.0,0.00037807,2]
[393717722,1762945838068,-151.0,0.00037807,2]
[393717723,1762945838078,-151.0,0.00037807,2]
[393717724,1762945838279,-151.0,0.00037807,2]
[393717725,1762945838293,-151.0,0.00037807,2]
[393717726,1762945838304,-151.0,0.00037807,2]
[393717727,1762945838317,-151.0,0.00037807,2]
[393717728,1762945838328,-1104.16044283,0.00037829,2]
[393717729,1762945838338,-33161.6491,0.0003783,2]
[393717730,1762945838350,-179.3763009,0.0003783,2]
[393717731,1762945838361,-4307.45855758,0.0003783,2]
[393717732,1762945838372,-4211.2602136,0.0003792,4]
[393717733,1762945838383,-376.87,0.0003792,3]
[393717734,1762945838393,-612.84786107,0.00037929,7]
[393717735,1762945838404,-500.0,0.00037929,15]
[393717736,1762945838416,-500.0,0.00037929,15]
[393717737,1762945838427,-414.21491017,0.00037929,2]
[393717738,1762945838438,-500.0,0.00037929,15]
[393717739,1762945838448,-500.0,0.00037929,15]
[393717740,1762945838459,-500.0,0.00037929,15]
[393717741,1762945838469,-500.0,0.00037929,15]
[393717742,1762945838491,-500.0,0.00037929,15]
[393717743,1762945838502,-500.0,0.00037929,15]
[393717744,1762945838512,-500.0,0.00037929,15]
[393717745,1762945838523,-500.0,0.00037929,15]
[393717746,1762945838533,-402.35718373,0.00037929,15]
[393717748,1762945839684,-97.64281627,0.00037929,15]
[393717749,1762945839696,-500.0,0.00037929,15]
[393717750,1762945839707,-500.0,0.00037929,15]
[393717751,1762945839718,-415.97686312,0.00037929,15]
[393717752,1762945839730,-500.0,0.00037929,15]
[393717753,1762945839741,-500.0,0.00037929,15]
[393717754,1762945839753,-500.0,0.00037929,15]
[393717755,1762945839764,-500.0,0.00037929,15]
[393717756,1762945839774,-500.0,0.00037929,15]
[393717757,1762945839784,-500.0,0.00037929,15]
[393717758,1762945839797,-500.0,0.00037929,15]
[393717759,1762945839807,-500.0,0.00037929,15]
[393717760,1762945839818,-500.0,0.00037929,15]
[393717761,1762945839828,-500.0,0.00037929,15]
[393717762,1762945839838,-500.0,0.00037929,15]
[393717763,1762945839848,-500.0,0.00037929,15]
[393717764,1762945839859,-500.0,0.00037929,15]
[393717765,1762945839868,-500.0,0.00037929,15]
[393717766,1762945839879,-500.0,0.00037929,15]
[393717767,1762945839889,-500.0,0.00037929,15]
[393717768,1762945839899,-500.0,0.00037929,15]
[393717769,1762945839909,-500.0,0.00037929,15]
[393717770,1762945839919,-500.0,0.00037929,15]
[393717771,1762945839929,-500.0,0.00037929,15]
[393717772,1762945839939,-500.0,0.00037929,15]
[393717773,1762945839948,-500.0,0.00037929,15]
[393717774,1762945839958,-500.0,0.00037929,15]
[393717775,1762945839968,-426.92747456,0.00037929,15]
[393717776,1762945839978,-500.0,0.00037929,15]
[393717777,1762945839988,-500.0,0.00037929,15]
[393717778,1762945839997,-500.0,0.00037929,15]
[393717779,1762945840007,-500.0,0.00037929,15]
[393717780,1762945840018,-500.0,0.00037929,15]
[393717781,1762945840028,-203.12,0.00037929,7]
[393717782,1762945840039,-212.62151716,0.00037929,14]
[393717783,1762945840049,-33515.62865653,0.0003793,2]
[393717786,1762945840065,-304.9245,0.0003793,2]
[393717791,1762945840110,-817.6367687,0.0003793,2]
[393717794,1762945840121,-1285.74697705,0.0003793,2]
[393717796,1762945840136,-68525.15969605,0.0003793,2]
[393717859,1762946268399,250.0,0.00017,2]
[393717861,1762946691332,151.0,0.000301,120]
[393717862,1762946707672,50000.0,0.00018,2]
[393717863,1762946707703,94000.0,0.00018,2]
[393717864,1762946707732,100000.0,0.00018,2]
[393717865,1762946707756,100000.0,0.00018,2]
[393717866,1762946707783,2987.03730564,0.00018,2]
[393717867,1762946707812,3510.63364484,0.00018,2]
[393717872,1762946870482,61489.36635516,0.00015,2]
[393717873,1762946870511,50000.0,0.00015,2]
[393717874,1762946870546,53510.80364484,0.00015,2]
[393717875,1762946915990,11840.54998655,0.00015,2]
[393717876,1762946945372,-3734.344586,0.00022,4]
[393717892,1762947031599,-6029.27716386,0.00022,4]
[393717893,1762947031609,-544.73323756,0.00034695,2]
[393717894,1762947031618,-176.7,0.00034795,120]
[393717895,1762947031628,-162.0,0.00034795,120]
[393717896,1762947031637,-1211.30664,0.0003491,2]
[393717898,1762947031646,-250.0,0.00035028,2]
[393717900,1762947031656,-1600.0,0.00035766,3]
[393717902,1762947031665,-175.59832493,0.00035767,2]
[393717903,1762947031675,-181.4484377,0.00035867,15]
[393717904,1762947031684,-1211.30664,0.0003591,2]
[393717905,1762947031693,-327.0,0.00035999,3]
[393717906,1762947031702,-9915.1764494,0.00036,120]
[393717907,1762947031717,-370.08215131,0.00036,120]
[393717908,1762947031958,-1763.12885803,0.00036,120]
[393717909,1762947031968,-1000.0,0.00036058,2]
[393717910,1762947031978,-1500.0,0.00036058,16]
[393717912,1762947031987,-150.0,0.00036058,2]
[393717914,1762947031996,-999.0,0.00036058,3]
[393717916,1762947032006,-972.19673124,0.00036058,30]
[393717934,1762947037830,-110.79326876,0.00036058,30]
[393717935,1762947037839,-490.23,0.00036058,2]
[393717936,1762947037849,-299.99,0.00036058,30]
[393717937,1762947037859,-474.14,0.00036058,2]
[393717938,1762947037869,-1893.32673124,0.00036113,2]
[393717956,1762947039801,-530.6,0.00036113,2]
[393717957,1762947040070,-994.22326876,0.00036113,2]
[393717958,1762947040080,-250.0,0.0003612,2]
[393717959,1762947040089,-5000.0,0.00036188,2]
[393717960,1762947040099,-1999.99999999,0.0003624,30]
[393717961,1762947040108,-168.0,0.00036269,120]
[393717962,1762947040117,-150.0,0.00036331,2]
[393717964,1762947040127,-174.9,0.00036403,2]
[393717965,1762947040136,-199.32,0.00036576,2]
[393717967,1762947040147,-240.17,0.00036666,2]
[393717968,1762947040156,-850.0,0.00036848,2]
[393717969,1762947040167,-181.41,0.00036849,2]
[393717970,1762947040176,-549.74,0.00036849,2]
[393717971,1762947040185,-1207.25,0.00036849,2]
[393717972,1762947040194,-150.0,0.00036849,2]
[393717973,1762947040203,-150.0,0.00036849,2]
[393717974,1762947040213,-173.33,0.00036849,2]
[393717975,1762947040223,-150.0,0.00036849,2]
[393717976,1762947040232,-416.24,0.00036849,2]
[393717977,1762947040242,-150.0,0.00036849,2]
[393717978,1762947040251,-153.05,0.00036849,2]
[393717979,1762947040260,-549.74,0.00036849,2]
[393717981,1762947040270,-150.0,0.00036849,2]
[393717982,1762947040279,-1207.25,0.00036849,2]
[393717983,1762947040288,-150.0,0.00036849,2]
[393717984,1762947040297,-416.24,0.00036849,2]
[393717985,1762947040307,-177.14,0.00036849,2]
[393717986,1762947040316,-169.26,0.00036849,2]
[393717987,1762947040326,-150.0,0.00036849,2]
[393717988,1762947040335,-150.0,0.00036849,2]
[393717989,1762947040345,-1211.30665,0.0003691,2]
[393717990,1762947040354,-200.0,0.00036949,2]
[393717991,1762947040363,-500.0,0.00037014,2]
[393717992,1762947040372,-156.52,0.0003705,120]
[393717993,1762947040381,-153.0,0.00037194,120]
[393717994,1762947040390,-153.0,0.00037194,120]
[393717995,1762947040400,-153.0,0.00037194,120]
[393717996,1762947040410,-153.0,0.00037194,120]
[393717997,1762947040419,-153.0,0.00037194,120]
[393717998,1762947040428,-153.0,0.00037194,120]
[393717999,1762947040437,-153.0,0.00037194,120]
[393718000,1762947040447,-153.0,0.00037194,120]
[393718001,1762947040456,-153.0,0.00037194,120]
[393718002,1762947040465,-153.0,0.00037194,120]
[393718003,1762947040474,-15523.72686005,0.00037204,5]
[393718004,1762947040484,-249.43161101,0.00037375,14]
[393718005,1762947040493,-211.68024455,0.00037386,2]
[393718006,1762947040502,-490.23,0.0003741,2]
[393718007,1762947040512,-168.0,0.00037482,7]
[393718008,1762947040521,-156.35,0.00037516,60]
[393718009,1762947040530,-500.0,0.00037535,7]
[393718010,1762947040539,-600.0,0.00037535,7]
[393718011,1762947040548,-800.0,0.00037535,7]
[393718012,1762947040557,-3332.07539816,0.0003756,2]
[393718013,1762947040566,-156.35,0.00037616,60]
[393718014,1762947040576,-294.484,0.0003767,49]
[393718015,1762947040585,-169.26,0.00037671,2]
[393718016,1762947040594,-150.0,0.00037671,2]
[393718017,1762947040603,-150.0,0.00037671,2]
[393718018,1762947040613,-549.74,0.00037671,2]
[393718019,1762947040622,-1207.25,0.00037671,2]
[393718020,1762947040631,-177.14,0.00037671,2]
[393718021,1762947040640,-150.0,0.00037671,2]
[393718022,1762947040650,-416.24,0.00037671,2]
[393718023,1762947040661,-150.0,0.00037671,2]
[393718024,1762947040671,-150.0,0.00037671,2]
[393718025,1762947040680,-177.14,0.00037671,2]
[393718026,1762947040689,-1207.25,0.00037671,2]
[393718027,1762947040698,-549.74,0.00037671,2]
[393718028,1762947040708,-416.24,0.00037671,2]
[393718029,1762947040717,-150.0,0.00037671,2]
[393718030,1762947040727,-169.26,0.00037671,2]
[393718031,1762947040736,-150.0,0.00037671,2]
[393718032,1762947040745,-549.74,0.00037671,2]
[393718033,1762947040754,-1207.25,0.00037671,2]
[393718034,1762947040763,-416.24,0.00037671,2]
[393718035,1762947040772,-1106.83,0.00037671,2]
[393718036,1762947040781,-1207.25,0.00037671,2]
[393718037,1762947040796,-175.59832493,0.00037673,2]
[393718038,1762947040805,-156.35,0.00037716,60]
[393718039,1762947040815,-33161.6491,0.00037729,2]
[393718040,1762947040824,-1927.2146,0.0003773,2]
[393718041,1762947040834,-179.3763009,0.0003773,2]
[393718042,1762947040844,-1727.74893304,0.0003773,2]
[393718043,1762947040853,-211.68024456,0.00037738,2]
[393718044,1762947040863,-7550.7577785,0.00037773,2]
[393718045,1762947040872,-150.0,0.000378,120]
[393718046,1762947040882,-151.0,0.00037807,2]
[393718047,1762947040892,-151.0,0.00037807,2]
[393718048,1762947040901,-151.0,0.00037807,2]
[393718049,1762947040910,-151.0,0.00037807,2]
[393718050,1762947040919,-191.80353656,0.00037807,2]
[393718051,1762947040928,-323.99742924,0.00037829,15]
[393718052,1762947040937,-500.0,0.00037829,15]
[393718053,1762947040946,-500.0,0.00037829,15]
[393718054,1762947040957,-500.0,0.00037829,15]
[393718055,1762947040966,-500.0,0.00037829,15]
[393718056,1762947040975,-500.0,0.00037829,15]
[393718057,1762947040984,-190.12913352,0.00037829,15]
[393718058,1762947040993,-500.0,0.00037829,15]
[393718059,1762947041003,-500.0,0.00037829,15]
[393718060,1762947041012,-500.0,0.00037829,15]
[393718061,1762947041021,-432.18111829,0.00037829,2]
[393718062,1762947041031,-500.0,0.00037829,15]
[393718063,1762947041040,-500.0,0.00037829,15]
[393718064,1762947041049,-389.55402667,0.00037829,15]
[393718065,1762947041059,-540.49874389,0.00037829,15]
[393718066,1762947041068,-500.0,0.00037829,15]
[393718067,1762947041078,-500.0,0.00037829,15]
[393718068,1762947041087,-500.0,0.00037829,7]
[393718069,1762947041096,-500.0,0.00037829,15]
[393718070,1762947041105,-500.0,0.00037829,15]
[393718071,1762947041114,-500.0,0.00037829,15]
[393718072,1762947041124,-500.0,0.00037829,15]
[393718073,1762947041133,-500.0,0.00037829,15]
[393718074,1762947041143,-523.63656899,0.00037829,7]
[393718075,1762947041152,-500.0,0.00037829,15]
[393718076,1762947041161,-500.0,0.00037829,15]
[393718077,1762947041171,-264.8720059,0.00037829,15]
[393718078,1762947041180,-500.0,0.00037829,15]
[393718079,1762947041188,-500.0,0.00037829,15]
[393718080,1762947041196,-500.0,0.00037829,15]
[393718081,1762947041205,-500.0,0.00037829,15]
[393718082,1762947041214,-500.0,0.00037829,2]
[393718083,1762947041223,-500.0,0.00037829,15]
[393718084,1762947041233,-500.0,0.00037829,15]
[393718085,1762947041242,-500.0,0.00037829,15]
[393718086,1762947041251,-500.0,0.00037829,15]
[393718087,1762947041260,-500.0,0.00037829,15]
[393718088,1762947041270,-500.0,0.00037829,15]
[393718089,1762947041280,-500.0,0.00037829,15]
[393718090,1762947041289,-500.0,0.00037829,15]
[393718091,1762947041298,-500.0,0.00037829,15]
[393718092,1762947041307,-500.0,0.00037829,15]
[393718093,1762947041316,-500.0,0.00037829,15]
[393718094,1762947041325,-500.0,0.00037829,15]
[393718095,1762947041335,-500.0,0.00037829,2]
[393718096,1762947041343,-500.0,0.00037829,15]
[393718097,1762947041352,-500.0,0.00037829,15]
[393718098,1762947041362,-500.0,0.00037829,15]
[393718099,1762947041564,-500.0,0.00037829,15]
[393718100,1762947041575,-500.0,0.00037829,15]
[393718101,1762947041585,-500.0,0.00037829,15]
[393718102,1762947041595,-500.0,0.00037829,15]
[393718103,1762947041604,-500.0,0.00037829,15]
[393718104,1762947041614,-500.0,0.00037829,15]
[393718105,1762947041624,-350.0,0.00037829,15]
[393718106,1762947041634,-500.0,0.00037829,15]
[393718107,1762947041643,-500.0,0.00037829,15]
[393718108,1762947041652,-500.0,0.00037829,15]
[393718109,1762947041662,-500.0,0.00037829,15]
[393718110,1762947041671,-500.0,0.00037829,15]
[393718111,1762947041681,-420000.0,0.0003783,2]
[393718112,1762947041690,-500.0,0.0003783,30]
[393718113,1762947041700,-500.0,0.00037873,5]
[393718114,1762947041710,-500.0,0.00037873,5]
[393718115,1762947041719,-1727.74893302,0.00037883,2]
[393718116,1762947041728,-1211.30664,0.0003791,2]
[393718117,1762947041738,-168.0,0.00037919,2]
[393718118,1762947041747,-7550.75777843,0.00037921,2]
[393718119,1762947041756,-151.0,0.00037928,15]
[393718120,1762947041766,-156.587,0.00037928,15]
[393718121,1762947041775,-162.380719,0.00037928,15]
[393718122,1762947041788,-168.3888056,0.00037928,15]
[393718123,1762947041797,-174.61919141,0.00037928,15]
[393718124,1762947041808,-181.08010149,0.00037928,15]
[393718125,1762947041817,-500.0,0.00037928,15]
[393718126,1762947041827,-187.78006525,0.00037928,15]
[393718127,1762947041836,-500.0,0.00037928,15]
[393718128,1762947041846,-184.86097967,0.00037928,15]
[393718129,1762947041855,-500.0,0.00037928,15]
[393718130,1762947041866,-500.0,0.00037928,15]
[393718131,1762947041875,-500.0,0.00037928,15]
[393718132,1762947041885,-500.0,0.00037928,15]
[393718133,1762947041894,-500.0,0.00037928,15]
[393718134,1762947041904,-500.0,0.00037928,15]
[393718135,1762947041913,-500.0,0.00037928,15]
[393718136,1762947041922,-500.0,0.00037928,15]
[393718137,1762947041932,-500.0,0.00037928,15]
[393718138,1762947041942,-529.95219414,0.00037928,15]
[393718139,1762947041952,-203.35,0.00037929,7]
[393718140,1762947041961,-1098.05342992,0.00037929,30]
[393718141,1762947041971,-1141.26008863,0.0003793,2]
[393718142,1762947041980,-32499.0267077,0.0003793,2]
[393718143,1762947041990,-200.0,0.0003793,2]
[393718144,1762947041999,-10280.5726465,0.0003793,2]
[393718145,1762947042009,-513.622924,0.0003793,2]
[393718146,1762947042018,-500.7937568,0.00037933,5]
[393718147,1762947042029,-5007.91791571,0.00037945,2]
[393718148,1762947042038,-508.67680499,0.00037973,5]
[393718149,1762947042048,-164.66375491,0.00037973,5]
[393718150,1762947042057,-168.0,0.00037974,2]
[393718151,1762947042066,-1000.0,0.00038,120]
[393718152,1762947042075,-170.0,0.00038,30]
[393718153,1762947042084,-2031.0,0.00038,2]
[393718154,1762947042093,-2031.0,0.00038,2]
[393718155,1762947042102,-2031.0,0.00038,2]
[393718156,1762947042111,-2031.0,0.00038,2]
[393718157,1762947042120,-2031.0,0.00038,2]
[393718158,1762947042129,-2031.0,0.00038,2]
[393718159,1762947042138,-2031.0,0.00038,2]
[393718160,1762947042148,-2031.0,0.00038,2]
[393718161,1762947042157,-2031.0,0.00038,2]
[393718162,1762947042166,-2031.0,0.00038,2]
[393718163,1762947042175,-100000.0,0.00038,14]
[393718164,1762947042184,-153.0,0.0003801,120]
[393718165,1762947042194,-153.0,0.0003801,120]
[393718166,1762947042203,-153.0,0.0003801,120]
[393718167,1762947042212,-153.0,0.0003801,120]
[393718168,1762947042220,-153.0,0.0003801,120]
[393718169,1762947042229,-153.0,0.0003801,120]
[393718170,1762947042238,-153.0,0.0003801,120]
[393718171,1762947042247,-153.0,0.0003801,120]
[393718172,1762947042256,-153.0,0.0003801,120]
[393718173,1762947042265,-153.0,0.0003801,120]
[393718174,1762947042274,-153.0,0.0003801,120]
[393718175,1762947042283,-153.0,0.0003801,120]
[393718176,1762947042292,-153.0,0.0003801,120]
[393718177,1762947042302,-153.0,0.0003801,120]
[393718178,1762947042311,-153.0,0.0003801,120]
[393718179,1762947042320,-153.0,0.0003801,120]
[393718180,1762947042329,-153.0,0.0003801,120]
[393718181,1762947042338,-153.0,0.0003801,120]
[393718182,1762947042347,-1727.74893302,0.00038036,2]
[393718184,1762947042357,-500.0,0.00038062,30]
[393718186,1762947042367,-7550.75777843,0.0003807,2]
[393718187,1762947042376,-500.0,0.00038104,30]
[393718188,1762947042385,-208.02147431,0.00038157,2]
[393718189,1762947042394,-7550.75777843,0.00038218,2]
[393718190,1762947042403,-153.59012997,0.00038247,30]
[393718191,1762947042413,-153.59012999,0.00038247,30]
[393718192,1762947042422,-250.0,0.00038275,2]
[393718193,1762947042431,-200.0,0.00038309,2]
[393718194,1762947042440,-160.0,0.00038356,15]
[393718195,1762947042449,-600.0,0.00038357,7]
[393718196,1762947042459,-800.0,0.00038357,7]
[393718197,1762947042469,-166.66,0.00038366,2]
[393718198,1762947042478,-7550.75777843,0.00038366,2]
[393718199,1762947042487,-1115.21991021,0.00038421,5]
[393718201,1762947042496,-153.59012997,0.00038438,30]
[393718202,1762947042505,-153.59012997,0.00038438,30]
[393718203,1762947042514,-1095.0,0.00038469,5]
[393718204,1762947042523,-203.35,0.00038477,8]
[393718205,1762947042532,-168.0,0.00038495,7]
[393718206,1762947042540,-1000.0,0.000385,120]
[393718207,1762947042548,-7550.75777843,0.00038515,2]
[393718208,1762947042556,-168.0,0.0003853,7]
[393718209,1762947042565,-160.0,0.00038575,24]
[393718211,1762947042574,-170.0,0.0003863,90]
[393718213,1762947042583,-7550.75777843,0.00038663,2]
[393718215,1762947042592,-168.0,0.00038679,2]
[393718217,1762947042602,-490.23,0.00038763,2]
[393718219,1762947042611,-180.0,0.00038795,30]
[393718221,1762947042619,-150.0,0.000388,120]
[393718223,1762947042629,-7550.75777843,0.00038811,2]
[393718225,1762947042638,-906.0,0.00038832,2]
[393718226,1762947042647,-1204.555,0.00038832,2]
[393718228,1762947042655,-2143.0,0.00038832,2]
[393718229,1762947042665,-574.0,0.00038832,2]
[393718230,1762947042674,-608.0,0.00038832,2]
[393718232,1762947042682,-6482.0,0.00038832,2]
[393718235,1762947042691,-1211.30665,0.0003891,2]
[393718236,1762947042700,-168.0,0.00038919,7]
[393718237,1762947042709,-827.0,0.00038949,7]
[393718238,1762947042718,-823.0,0.00038949,7]
[393718239,1762947042727,-7550.75777843,0.0003896,2]
[393718240,1762947042737,-1000.0,0.00039,120]
[393718241,1762947042748,-99999.99999907,0.00039,7]
[393718242,1762947042758,-1000.0,0.00039,120]
[393718243,1762947042767,-248.333037,0.00039,30]
[393718244,1762947042776,-200.0,0.00039,120]
[393718245,1762947042787,-200.0,0.00039,120]
[393718246,1762947042798,-200.0,0.00039,120]
[393718247,1762947042807,-200.0,0.00039,120]
[393718248,1762947042816,-1000.0,0.00039022,7]
[393718249,1762947042827,-203.35,0.00039025,9]
[393718250,1762947042837,-1000.0,0.00039035,7]
[393718251,1762947042846,-500.0,0.00039041,120]
[393718252,1762947042856,-1000.0,0.00039077,7]
[393718253,1762947042865,-177.45273806,0.00039078,2]
[393718254,1762947042874,-5000.0,0.00039078,30]
[393718255,1762947042883,-219.45729136,0.00039081,7]
[393718256,1762947042892,-151.0,0.00039085,7]
[393718257,1762947042901,-151.0,0.00039085,7]
[393718258,1762947042910,-151.0,0.00039085,7]
[393718259,1762947042919,-151.0,0.00039085,7]
[393718260,1762947042928,-151.0,0.00039085,7]
[393718261,1762947042938,-151.0,0.00039085,7]
[393718262,1762947042946,-151.0,0.00039085,7]
[393718263,1762947042956,-151.0,0.00039085,7]
[393718264,1762947042965,-151.0,0.00039085,7]